Cogmind - Beta 15 @@@ ROGUE MODE // 2025.06.03 @ 23:39:08 // Winter2019/RPGLIKE Player: Jack Result: Self-destructed Performance ------------- Evolutions (2) 1000 Regions Visited (4) 800 Robots Destroyed (41) 205 Value Destroyed (951) 951 Prototype IDs (1) 20 Alien Tech Used (0) 0 Bonus (-144) -144 TOTAL SCORE: 2832 Bonus ------- Follower Combat Kills 7 Friendly Fire -151 Cogmind --------- Core Integrity 17/600 Matter 20/300 Energy 82/100 System Corruption 0% Temperature Cool (0) Movement Flying (34) Location -8/Materials Parts ------- > --- POWER (1) -------- (None) > --- PROPULSION (2) --- Flight Unit VTOL Module > --- UTILITY (1) ------ Improved Heat Sink > --- WEAPON (2) ------- Particle Cannon YI-UF0's Doublenader > --- INVENTORY (0) ---- (None) Peak State ------------ > --- POWER ------------ (None) > --- PROPULSION ------- Flight Unit VTOL Module > --- UTILITY ---------- Improved Heat Sink > --- WEAPON ----------- Particle Cannon YI-UF0's Doublenader > --- INVENTORY -------- (None) [Rating: 12] Favorites ----------- Power Light Ion Engine Engine Light Ion Engine Propulsion Flight Unit Flight Unit Flight Unit Utility Improved Heat Sink Device Improved Heat Sink Weapon Particle Cannon Energy Gun Particle Gun Energy Cannon Particle Cannon Ballistic Gun Assault Rifle Launcher YI-UF0's Doublenader Build | -11 -10 -9 -9 -8 ------- Run | Yrd Mat Mat Min Mat Slots Evolved 2 | 2 . . . . Power . | . . . . . Propulsion 1 | 1 . . . . Utility . | . . . . . Weapon 1 | 1 . . . . Parts Attached 12 | 2 5 2 2 1 Power 1 | . 1 . . . Engine 1 | . 1 . . . Core . | . . . . . Reactor . | . . . . . Propulsion 3 | . 2 1 . . Treads . | . . . . . Leg . | . . . . . Wheel . | . . . . . Hover . | . . . . . Flight 3 | . 2 1 . . Utility 1 | . . . 1 . Device 1 | . . . 1 . Storage . | . . . . . Processor . | . . . . . Hackware . | . . . . . Protection . | . . . . . Artifact . | . . . . . Weapon 7 | 2 2 1 1 1 Energy Gun 2 | . 2 . . . Energy Cannon 2 | . . 1 . 1 Ballistic Gun 2 | 2 . . . . Ballistic Cannon . | . . . . . Launcher 1 | . . . 1 . Special Weapon . | . . . . . Impact Weapon . | . . . . . Slashing Weapon . | . . . . . Piercing Weapon . | . . . . . Special Melee Weapon . | . . . . . Unidentified Prototypes 1 | . . . 1 . Parts Lost 1 | . . . 1 . Power 1 | . . . 1 . Propulsion . | . . . . . Utility . | . . . . . Weapon . | . . . . . Highest Loss Streak 1 | . . . 1 . To Critical Strikes . | . . . . . Average Backups . | . . . . . Power . | . . . . . Propulsion . | . . . . . Utility . | . . . . . Weapon . | . . . . . Tool/Special . | . . . . . Unused Backups . | . . . . . Power . | . . . . . Propulsion . | . . . . . Utility . | . . . . . Weapon . | . . . . . Tool/Special . | . . . . . Average Slot Usage (%) 79 | . 54 83 91 83 Engine 9 | . 6 16 9 . Flight 29 | . 14 33 33 33 Device 7 | . . . 14 16 Energy Gun 9 | . 6 18 9 . Energy Cannon 13 | . . 14 16 20 Ballistic Gun 5 | . 26 . . . Launcher 4 | . . . 6 11 Peak Build Rating 12 | 2 6 8 12 12 Average Rating 8 | 1 3 6 11 11 On Entrance 5 | . 2 6 8 12 Naked Turns . | . . . . . Heaviest Build 11 | 3 7 10 11 11 Greatest Support 13 | 3 8 13 13 13 Greatest Overweight (x) 1 | . . 1 . . Average Overweight (x) . | . . . . . Largest Inventory Capacity . | . . . . . Average Capacity . | . . . . . Most Carried . | . . . . . Average Carried . | . . . . . Final Capacity . | . . . . . Final Carried . | . . . . . Class Distribution -------------------- 92% | Hacker-Mutant 7% | Scavenger-Mutant Dominant Class ---------------- Hacker-Mutant | -10/Materials Hacker-Mutant | -9/Materials Hacker-Mutant | -9/Mines Hacker-Mutant | -8/Materials Resources | -11 -10 -9 -9 -8 ----------- Run | Yrd Mat Mat Min Mat Matter Collected 465 | 208 142 10 55 50 Remotely . | . . . . . Salvage Created 1393 | . 325 375 320 373 Parts 69 | . 17 23 10 19 Haulers Intercepted . | . . . . . Recyclers Shooed 1 | . . . 1 . Parts Field Recycled . | . . . . . Retrieved Matter . | . . . . . Parts Self-Destructed . | . . . . . Prevented . | . . . . . Kills | -11 -10 -9 -9 -8 ------- Run | Yrd Mat Mat Min Mat Combat Hostiles Destroyed 32 | . 6 10 5 11 Guns 10 | . 6 1 3 . Cannons 12 | . . 9 2 1 AOE 10 | . . . . 10 Classes Destroyed 8 | . 4 2 1 1 Worker 2 | . . . . 2 Builder 1 | . 1 . . . Recycler 2 | . 1 1 . . Watcher 1 | . . 1 . . Swarmer 12 | . 3 3 2 4 Grunt 15 | . 3 5 3 4 Duelist 1 | . . . 1 . Sentry 5 | . . 2 . 3 Thug 1 | . . . 1 . Best Kill Streak 12 | . 7 7 2 12 Combat Bots Only 10 | . 5 6 2 10 Max Kills in Single Turn 3 | . 1 1 1 3 Gunslinging . | . . . . . Exploded 3 | . . . . 3 Melee . | . . . . . Uniques/NPCs Destroyed 1 | . . . 1 . YI-UF0 (-9/Mines) Combat | -11 -10 -9 -9 -8 -------- Run | Yrd Mat Mat Min Mat Hostile Shots Fired 154 | . 33 42 25 54 Missed 51 | . 4 15 8 24 Hits 103 | . 29 27 17 30 Melee 1 | . . . 1 . Projectile 102 | . 29 27 16 30 AOE 4 | . . . 4 . Critical Strikes 3 | . 1 1 . 1 Damage Taken 1297 | . 303 275 301 418 Core 1084 | . 271 231 243 339 Absorbed by Shields . | . . . . . Redirected to Core 709 | . 100 142 208 259 Core Remaining (%) 71 | 100 54 . 59 . Volleys Fired 94 | . 20 25 30 19 Largest 2 | . 2 2 2 2 Hottest 136 | . 40 133 133 136 Shots Fired 164 | . 40 50 53 21 Gun 88 | . 40 25 23 . Cannon 63 | . . 25 29 9 Launcher 13 | . . . 1 12 Special . | . . . . . Kinetic 40 | . 40 . . . Thermal 111 | . . 50 52 9 Explosive 13 | . . . 1 12 Electromagnetic . | . . . . . Robot Hit Streak 11 | . 8 8 11 7 Robot Miss Streak 5 | . 3 3 5 4 Penetration Max . | . . . . . Secondary Targets . | . . . . . Shots Hit Robots 88 | . 23 26 32 7 Core Hits 68 | . 13 15 14 26 Critical Kills . | . . . . . Critical Parts Destroyed . | . . . . . Critical Strikes . | . . . . . Melee Attacks . | . . . . . Impact . | . . . . . Slashing . | . . . . . Piercing . | . . . . . Sneak Attacks . | . . . . . Combat Hostiles . | . . . . . Follow-up Attacks . | . . . . . Damage Inflicted 2340 | . 237 475 580 1048 Guns 676 | . 237 186 253 . Cannons 740 | . . 289 327 124 Explosions 924 | . . . . 924 Melee . | . . . . . Ramming . | . . . . . Kinetic 237 | . 237 . . . Thermal 1179 | . . 475 580 124 Explosive 924 | . . . . 924 Electromagnetic . | . . . . . Impact . | . . . . . Slashing . | . . . . . Piercing . | . . . . . Highest Corruption . | . . . . . Average Corruption . | . . . . . Corruption Purged . | . . . . . Corruption Blocked . | . . . . . Overload Shots . | . . . . . Overflow Damage 42 | . . . 7 35 Projectiles 7 | . . . 7 . Explosions 35 | . . . . 35 Melee . | . . . . . Knockbacks . | . . . . . Impact . | . . . . . Kinetic . | . . . . . Secondary . | . . . . . Self-Inflicted Damage 41 | . . . . 41 Shots 3 | . . . . 3 Rammed . | . . . . . Targets Rammed . | . . . . . Kicked . | . . . . . Crushed . | . . . . . Highest Temperature 78 | . 22 78 . . Average Temperature 21 | . 8 44 . . Received Heat Transfer 372 | . 123 90 6 153 Siege Activations . | . . . . . Martial Activations . | . . . . . Shielding Activations . | . . . . . Robots Disrupted . | . . . . . Combat Hostiles . | . . . . . Robots Corrupted . | . . . . . Combat Hostiles . | . . . . . Parts Fried . | . . . . . Impact Corruptions . | . . . . . Robots Melted . | . . . . . Combat Hostiles . | . . . . . Parts Melted 1 | . . 1 . . Heat Transferred 2405 | . . 962 1221 222 Parts Sabotaged . | . . . . . Parts Stolen . | . . . . . Parts Stripped . | . . . . . Power Chain Reactions . | . . . . . Alert | -11 -10 -9 -9 -8 ------- Run | Yrd Mat Mat Min Mat Maximum Alert Level 1 | . . 1 . 1 Low Security (%) 88 | 100 100 74 100 83 Level 1 11 | . . 25 . 16 Level 2 . | . . . . . Level 3 . | . . . . . Level 4 . | . . . . . Level 5 . | . . . . . High Security . | . . . . . Max Security . | . . . . . Peak Influence 360 | . 110 269 195 360 Initial 96 | . . 37 96 45 Average 104 | . 73 117 136 87 Influence Increases 996 | . 150 319 142 385 Destroy 0b10 Robot/C 640 | . 120 200 100 220 Destroy 0b10 Robot/NC 30 | . 10 10 . 10 Destroy Leader 142 | . 20 42 20 60 Allied During Kill 19 | . . . 19 . Successful Hack 6 | . . 6 . . Destroy Structure 99 | . . 1 3 95 Lose Combat Pursuer 60 | . . 60 . . Influence Decreases 636 | . 60 160 273 143 Entered New Map 279 | . . 53 153 73 Time Decay 327 | . 60 107 90 70 Lost Part 10 | . . . 10 . Lost Ally 20 | . . . 20 . Squads Dispatched 2 | . . 1 . 1 Investigation 1 | . . 1 . . Extermination . | . . . . . Reinforcement 1 | . . . . 1 Assault . | . . . . . Garrison . | . . . . . Intercept . | . . . . . Searches Triggered . | . . . . . Construction Impeded . | . . . . . Haulers Reinforced . | . . . . . Active Scanning Responses . | . . . . . Cargo Convoy Interrupts . | . . . . . Stealth | -11 -10 -9 -9 -8 --------- Run | Yrd Mat Mat Min Mat Distress Signals 2 | . . 1 . 1 Communications Jammed . | . . . . . Distress Signals . | . . . . . Times Spotted 39 | . 6 14 6 13 Peak Tracking Total 6 | . 4 6 3 6 Tactical Retreats 2 | . . 2 . . Traps | -11 -10 -9 -9 -8 ------- Run | Yrd Mat Mat Min Mat Traps Triggered . | . . . . . Indirectly . | . . . . . Trap Hack Attempts . | . . . . . Triggered . | . . . . . Disarmed . | . . . . . Reprogrammed . | . . . . . Reused . | . . . . . Traps Extracted . | . . . . . Installed . | . . . . . Triggered . | . . . . . Machines | -11 -10 -9 -9 -8 ---------- Run | Yrd Mat Mat Min Mat Machines Disabled . | . . . . . Max in Single Turn . | . . . . . Machines Repaired . | . . . . . Machines Dismantled . | . . . . . Machines Sabotaged . | . . . . . Overloaded Fab Kills . | . . . . . Hacking | -11 -10 -9 -9 -8 --------- Run | Yrd Mat Mat Min Mat Machines Accessed 2 | . . 1 . 1 Terminals 2 | . . 1 . 1 Fabricators . | . . . . . Repair Stations . | . . . . . Recycling Units . | . . . . . Scanalyzers . | . . . . . Garrison Access . | . . . . . Total Hacks 7 | . . 3 . 4 Successful 2 | . . 1 . 1 Failed 5 | . . 2 . 3 Catastrophic 1 | . . 1 . . Database Lockouts . | . . . . . Manual 4 | . . 4 . . Terminals 7 | . . 3 . 4 Fabricators . | . . . . . Repair Stations . | . . . . . Recycling Units . | . . . . . Scanalyzers . | . . . . . Garrison Access . | . . . . . Terminal Hacks 2 | . . 1 . 1 Branch Access Points 2 | . . 1 . 1 Fabricator Hacks . | . . . . . Repair Station Hacks . | . . . . . Recycling Unit Hacks . | . . . . . Scanalyzer . | . . . . . Garrison Access Hacks . | . . . . . Unauthorized Hacks . | . . . . . Terminals . | . . . . . Fabricators . | . . . . . Repair Stations . | . . . . . Recycling Units . | . . . . . Scanalyzers . | . . . . . Garrison Access . | . . . . . Data Cores Recovered . | . . . . . Used . | . . . . . Hacking Detections 2 | . . 1 . 1 Full Trace Events 1 | . . 1 . . Feedback Events . | . . . . . Feedback Blocked . | . . . . . Robot Schematics Acquired . | . . . . . Robots Built . | . . . . . Authchips . | . . . . . Time . | . . . . . Total Robot Build Rating . | . . . . . Part Schematics Acquired . | . . . . . Parts Built . | . . . . . Authchips . | . . . . . Time . | . . . . . Total Part Build Rating . | . . . . . Parts Repaired . | . . . . . Time . | . . . . . Parts Recycled . | . . . . . Recycled Matter . | . . . . . Retrieved Matter . | . . . . . Retrieved Components . | . . . . . Parts Scanalyzed . | . . . . . Part Schematics Acquired . | . . . . . Parts Damaged . | . . . . . Bothacking | -11 -10 -9 -9 -8 ------------ Run | Yrd Mat Mat Min Mat Used RIF Installer . | . . . . . Robots Hacked . | . . . . . Non-combat . | . . . . . Combat . | . . . . . Robot Hacks Applied . | . . . . . Relay Couplers Released . | . . . . . Fabnet Peak Effective % . | . . . . . Robots Rewired . | . . . . . Allies Hacked . | . . . . . Hacks Repelled . | . . . . . Allies | -11 -10 -9 -9 -8 -------- Run | Yrd Mat Mat Min Mat Total Allies 3 | . . . 3 . Largest Group 3 | . . . 3 . Highest-Rated Group 40 | . . . 40 . Highest-Rated Ally 16 | . . . 16 . Total Orders . | . . . . . Ally Attacks 9 | . . . 9 . Total Damage 75 | . . . 75 . Kills 1 | . . . 1 . Allies Corrupted . | . . . . . Allies Melted . | . . . . . Intel | -11 -10 -9 -9 -8 ------- Run | Yrd Mat Mat Min Mat Active Infowar (turns) . | . . . . . Robot Analysis Total . | . . . . . Derelict Logs Recovered . | . . . . . Drone Launches . | . . . . . Drone Recoveries . | . . . . . Exploration | -11 -10 -9 -9 -8 ------------- Run | Yrd Mat Mat Min Mat Turns Passed 731 | 22 140 230 197 142 Spaces Moved 855 | 38 166 271 168 212 Core 85 | 38 47 . . . Treads . | . . . . . Legs . | . . . . . Wheels . | . . . . . Hover . | . . . . . Flight 770 | . 119 271 168 212 Fastest Speed 34 | 50 37 34 34 34 Average Speed 40 | 50 40 48 34 34 Slowest Speed 117 | 50 50 117 34 34 Overloaded Moves . | . . . . . Propulsion Burnouts . | . . . . . Robots Hopped 11 | . 1 1 3 6 Potential Cave-ins . | . . . . . Cave-ins Triggered . | . . . . . Exploration Rate (%) 25 | 3 29 28 46 20 Regions Visited 4 Branch Regions 1 Pre-discovered Areas . | . . . . . Known Exits Taken 1 | . . 1 . . Unknown Exits Taken 3 | 1 1 . 1 . Scrap Searched 1 | . . . 1 . Spaces Dug . | . . . . . Terrain Destroyed 107 | . . . 4 103 Melee . | . . . . . Projectile 1 | . . . 1 . AOE 106 | . . . 3 103 Terrain Rammed . | . . . . . Walls Destroyed . | . . . . . Machines Disabled . | . . . . . Actions | -11 -10 -9 -9 -8 --------- Run | Yrd Mat Mat Min Mat Total 1061 | 39 199 319 250 254 Wait 83 | . 8 4 48 23 Move 829 | 37 163 268 161 200 Hop 11 | . 1 1 3 6 Pick Up . | . . . . . Fast Attach 13 | 2 5 1 2 3 Attach . | . . . . . Detach . | . . . . . Swap 1 | . . 1 . . Drop 8 | . 2 2 1 3 Fire 94 | . 20 25 30 19 Melee . | . . . . . Ram . | . . . . . Kick . | . . . . . Crush . | . . . . . Escape Stasis . | . . . . . Rewire . | . . . . . Trap . | . . . . . Miscellaneous 22 | . . 17 5 . Route ------- -11/Scrapyard -10/Materials -9/Materials (discovered 2 exits: *Mat / *Min) -9/Mines -8/Materials (discovered 1 exit: *Sto) History --------- Turn | Location | Event 3 | -11/Scrapyard | Discovered new exit (range 16) 8 | -11/Scrapyard | Upgraded with Propulsion slot (x1) 8 | -11/Scrapyard | Upgraded with Weapon slot (x1) 23 | -11/Scrapyard | Entered Materials 159 | -10/Materials | Discovered new exit (range 8) 163 | -10/Materials | Entered another Materials area 165 | -9/Materials | Reached level 2 236 | -9/Materials | Core integrity fell below 50% 297 | -9/Materials | Discovered new exit (range 8) 316 | -9/Materials | Identified exit to Mines 327 | -9/Materials | Reached level 3 393 | -9/Materials | Entered Mines 396 | -9/Mines | Received a Mining Laser from a helpful Derelict 411 | -9/Mines | Assisted by bots powering up and referring to "LRC-V3" 479 | -9/Mines | Build established: Hacker-Mutant 483 | -9/Mines | Reached level 4 514 | -9/Mines | Destroyed YI-UF0 518 | -9/Mines | Found Prototype Launcher 518 | -9/Mines | Identified YI-UF0's Doublenader 541 | -9/Mines | Discovered new exit (range 14) 590 | -9/Mines | Entered Materials 592 | -8/Materials | Reached level 5 602 | -8/Materials | Identified exit to Storage 687 | -8/Materials | Core integrity fell below 50% 701 | -8/Materials | Core integrity fell below 20% 732 | -8/Materials | Self-destructed Last Messages --------------- S-10 Pest destroyed. K-01 Serf collects debris. K-01 Serf destroyed. G-47 Trooper destroyed. S-10 Pest destroyed. K-01 Serf collects debris. U-05 Engineer lays Concrete. Y-45 Defender destroyed. K-01 Serf collects debris. U-05 Engineer builds a Wall. K-01 Serf collects debris. Acquired 50 matter. Y-45 Defender destroyed. G-50 Soldier destroyed. G-47 Trooper destroyed. The unstable cave ceiling collapses. K-01 Serf collects debris. The unstable cave ceiling collapses. Aluminum Leg crushed. K-01 Serf collects debris. Map ----- +----------------------------------------------------+ | ?????????????????????????????????????? | | ?????????????????????????????????????? | | ?????????????????????????????????????? | | ?????????????????????????????????????? | | ?????????????????????????????????????? | | ?????????????????????????????????????? | | ?????????????????????????????????????? | | ?????????????????????????????????????? | | ???????? ??????????????????????????? | | ???????# ??????????????????????????? | | ???????# ???????????? %=?????????? | | ???????# ??????????? ???????? | | ???????# ?????????? ??????? | | ?????? ?????????? #%= ??????? | | ?????# ??????????# ! ####???? | | ?????? ??????????# g ???? | | ??????# #######???# # "????? | | ??????# # #???# =% "????? | | ??????# ###?# [%* ?????? | | ???????# * #?? !> ??????? | | ?#?????# =% #?? ???????? | | #### = "" #??# ????????? | | %% k " #??# #????????? | | " % " #### #????????? | | " k #????????? | | ###### # @ ##???????? | | ?????????# # * #### #???????? | | ???##????# # = #???????? | | ???# ""??# ##+## #???????? | | ???# "T" # # ! #???????? | | ???# " " + # [ #???????? | | ???# # # !! # #???????? | | ???# ! ?# # !! ### #???????? | | ???# !???# ^# #?# #???????? | | ???##??### ##+######## #???????? | | ???????# #???????? | | ???????# #???????? | | ???????# """ !! #???????? | | ???????# """ !! #???????? | | ######## """ !! #???????? | | """ #???????? | | #???????? | | ? ????????? | | ###+################??? ??????????? | | #?????????????????????????????????? | | #?????????????????????????????????? | | #?????????????#########???????????? | | #?????????????# #???????????? | | #?????????????# #???????????? | | ##????????????# #???????????? | +----------------------------------------------------+ Best States ------------- Heat Dissipation 75 Energy Generation 10 Energy Capacity 125 Matter Stores 300 Matter Capacity 300 Sight Range 16 Terrain Scan Density 10 Evasion (%) 63 Offensive Hacking 40 Item Schematics ----------------- None Robot Schematics ------------------ None Fabricated ------------ Nothing Repaired ---------- Nothing Alien Tech Used ----------------- None Achievements -------------- None Challenges ------------ None RPGLIKE | -11 -10 -9 -9 -8 --------- Run | Yrd Mat Mat Min Mat Levels Raised 4 | . . 2 1 1 XP Earned 10433 | 3000 700 2730 1103 2900 XP Spent 8900 | 3000 . 700 . 5200 Upgrades 17 | 6 . 7 . 4 Propulsion Slot 1 | 1 . . . . Weapon Slot 1 | 1 . . . . Heat Dissipation 6 | . . 6 . . Mass Support 1 | . . 1 . . Hack Attack % 8 | 4 . . . 4 Protomatter Created 268 | . 15 164 89 . Integrity Restored 501 | . . 387 114 . Core 501 | . . 387 114 . Protomatter Decayed 101 | . 15 35 51 . Game ------ Seed FlakQuantumReplicator Manual? 0 Play Time 00:13:24 Cumulative 248.5 hours Start 2025.06.03 @ 22:37:46 End 2025.06.03 @ 23:39:08 Sessions 1 Manual Loads 0 Difficulty Rogue Special Mode Winter2019/RPGLIKE Game No. 247 Rogue 58 Adventurer 177 Explorer 12 Win Type - Total 64 Types 19/1/16/2/12/0/4/5/0/5 Lore% 54 Gallery% 52 Achievement% 70 Wizard Run 0 Options --------- Layout 0 ASCII 0 Keyboard 0 Movement Mouse Keybinds 0 Fullscreen 2 Font 12/Smallcaps Map View 83x54 Zoom Use 0% Tactical HUD 0 Map Filters NONE Filters NONE Steam 1 RUN: 8b77eaae-9a93-4c72-983a-d7d593e542bb